[Event "*** Titled Tuesday Blitz"]
[Site "Chess.com"]
[Date "2021.02.09"]
[Round "9"]
[White "lamomiablanca"]
[Black "dosto07"]
[Result "1-0"]
[WhiteElo "2279"]
[BlackElo "2381"]
[TimeControl "180+1"]
[EndTime "11:44:43 PST"]
[Termination "lamomiablanca won on time"]

1. e4 {[%clk 0:02:53.9]} 1... e5 {[%clk 0:02:59.6]} 2. Nf3 {[%clk 0:02:53.1]}
2... Nc6 {[%clk 0:03:00.2]} 3. Nc3 {[%clk 0:02:52.6]} 3... Nf6 {[%clk
0:02:58.8]} 4. d4 {[%clk 0:02:52.3]} 4... exd4 {[%clk 0:02:58.5]} 5. Nxd4 {[%clk
0:02:53.2]} 5... Bb4 {[%clk 0:02:58.1]} 6. Nxc6 {[%clk 0:02:53.3]} 6... bxc6
{[%clk 0:02:58.5]} 7. Bd3 {[%clk 0:02:53.5]} 7... d5 {[%clk 0:02:58.4]} 8. exd5
{[%clk 0:02:53.9]} 8... O-O {[%clk 0:02:57]} 9. O-O {[%clk 0:02:54.2]} 9... cxd5
{[%clk 0:02:56.3]} 10. h3 {[%clk 0:02:54.1]} 10... Re8 {[%clk 0:02:49.7]} 11.
Qf3 {[%clk 0:02:52.8]} 11... c6 {[%clk 0:02:41.3]} 12. Bf4 {[%clk 0:02:48]}
12... Bxc3 {[%clk 0:02:18.3]} 13. bxc3 {[%clk 0:02:47.3]} 13... Ne4 {[%clk
0:02:18.8]} 14. Rad1 {[%clk 0:02:34.4]} 14... Qf6 {[%clk 0:02:12.5]} 15. Bxe4
{[%clk 0:02:27.1]} 15... Rxe4 {[%clk 0:02:04.2]} 16. Rfe1 {[%clk 0:02:05.9]}
16... Bf5 {[%clk 0:01:58.5]} 17. Rxe4 {[%clk 0:02:05.6]} 17... Bxe4 {[%clk
0:01:56.8]} 18. Qg3 {[%clk 0:02:05.2]} 18... Bxc2 {[%clk 0:01:49.5]} 19. Re1
{[%clk 0:02:03.9]} 19... Be4 {[%clk 0:01:39.3]} 20. Qe3 {[%clk 0:01:56.8]} 20...
h6 {[%clk 0:01:33.8]} 21. Bg3 {[%clk 0:01:53.2]} 21... Qg6 {[%clk 0:01:17.6]}
22. Qc5 {[%clk 0:01:52]} 22... h5 {[%clk 0:01:12.8]} 23. h4 {[%clk 0:01:49.8]}
23... f5 {[%clk 0:00:57.1]} 24. Qe3 {[%clk 0:01:36]} 24... Rf8 {[%clk
0:00:50.4]} 25. Qf4 {[%clk 0:01:34.6]} 25... Re8 {[%clk 0:00:39.8]} 26. f3
{[%clk 0:01:28.8]} 26... Bd3 {[%clk 0:00:38.5]} 27. Rd1 {[%clk 0:01:27.7]} 27...
Bc4 {[%clk 0:00:34.3]} 28. Rb1 {[%clk 0:01:18.6]} 28... Qf7 {[%clk 0:00:24.5]}
29. a4 {[%clk 0:01:06]} 29... a5 {[%clk 0:00:19.7]} 30. Qd6 {[%clk 0:01:05.4]}
30... Kh7 {[%clk 0:00:17.9]} 31. Qxc6 {[%clk 0:00:59.7]} 31... Re2 {[%clk
0:00:17]} 32. Rb6 {[%clk 0:00:45.2]} 32... Qe8 {[%clk 0:00:10.3]} 33. Qd6 {[%clk
0:00:17.1]} 33... Qe3+ {[%clk 0:00:08.5]} 34. Kh2 {[%clk 0:00:16.3]} 34... Qxc3
{[%clk 0:00:04.7]} 35. Qg6+ {[%clk 0:00:15.6]} 1-0

[Event "*** Titled Tuesday Blitz"]
[Site "Chess.com"]
[Date "2021.02.09"]
[Round "9"]
[White "Chessmasterzt"]
[Black "Brave_spirit12"]
[Result "1-0"]
[WhiteElo "2619"]
[BlackElo "2500"]
[TimeControl "180+1"]
[EndTime "11:44:46 PST"]
[Termination "Chessmasterzt won by resignation"]

1. d4 {[%clk 0:03:00.9]} 1... Nf6 {[%clk 0:02:59.2]} 2. c4 {[%clk 0:03:01.4]}
2... c5 {[%clk 0:02:59.3]} 3. Nf3 {[%clk 0:02:57.8]} 3... cxd4 {[%clk
0:02:58.4]} 4. Nxd4 {[%clk 0:02:58.7]} 4... d5 {[%clk 0:02:58.5]} 5. cxd5 {[%clk
0:02:31]} 5... Nxd5 {[%clk 0:02:57.4]} 6. e4 {[%clk 0:02:30]} 6... Nb4 {[%clk
0:02:53.7]} 7. Be3 {[%clk 0:02:29.7]} 7... e5 {[%clk 0:02:48.7]} 8. Nb5 {[%clk
0:02:24.3]} 8... Qxd1+ {[%clk 0:02:42.6]} 9. Kxd1 {[%clk 0:02:25.2]} 9... N8a6
{[%clk 0:02:42.9]} 10. a3 {[%clk 0:02:11.7]} 10... Nc6 {[%clk 0:02:39]} 11. Bc4
{[%clk 0:02:03.8]} 11... Be6 {[%clk 0:02:33.2]} 12. Bxe6 {[%clk 0:02:01.5]}
12... fxe6 {[%clk 0:02:34.1]} 13. Ke2 {[%clk 0:01:54.2]} 13... Be7 {[%clk
0:02:27.7]} 14. Nd2 {[%clk 0:01:46.4]} 14... Kf7 {[%clk 0:02:26.6]} 15. Nb3
{[%clk 0:01:45.4]} 15... Rhd8 {[%clk 0:02:24.5]} 16. Rhd1 {[%clk 0:01:44.9]}
16... Rac8 {[%clk 0:02:12.2]} 17. Rxd8 {[%clk 0:01:35.8]} 17... Nxd8 {[%clk
0:02:08.1]} 18. Rc1 {[%clk 0:01:35.8]} 18... Nc6 {[%clk 0:01:55.1]} 19. Nxa7
{[%clk 0:01:27.3]} 19... Nxa7 {[%clk 0:01:53.8]} 20. Bxa7 {[%clk 0:01:28.2]}
20... Rd8 {[%clk 0:01:46.2]} 21. Bb6 {[%clk 0:01:18.1]} 21... Rd7 {[%clk
0:01:45]} 22. Rd1 {[%clk 0:01:13.7]} 22... Rxd1 {[%clk 0:01:38.5]} 23. Kxd1
{[%clk 0:01:14.6]} 23... Ke8 {[%clk 0:01:39]} 24. Na5 {[%clk 0:00:38.5]} 24...
Bc5 {[%clk 0:01:37.2]} 25. Nc4 {[%clk 0:00:30.4]} 25... Ke7 {[%clk 0:01:26.7]}
26. f3 {[%clk 0:00:27.8]} 26... Bd4 {[%clk 0:01:18.6]} 27. b4 {[%clk 0:00:24.1]}
27... Kd7 {[%clk 0:01:17.5]} 28. Bxd4 {[%clk 0:00:23.1]} 28... exd4 {[%clk
0:01:18.4]} 29. Ke2 {[%clk 0:00:22.5]} 29... b5 {[%clk 0:01:00.7]} 30. Ne5+
{[%clk 0:00:22.6]} 30... Kd6 {[%clk 0:01:00.6]} 31. f4 {[%clk 0:00:20.1]} 31...
g5 {[%clk 0:00:55]} 32. Nf7+ {[%clk 0:00:19.7]} 32... Ke7 {[%clk 0:00:55.1]} 33.
Nxg5 {[%clk 0:00:20.6]} 33... h6 {[%clk 0:00:55.9]} 34. Nf3 {[%clk 0:00:20.7]}
34... Nc7 {[%clk 0:00:53.4]} 35. Nxd4 {[%clk 0:00:20.4]} 35... Kf6 {[%clk
0:00:53.9]} 36. e5+ {[%clk 0:00:20.2]} 36... Ke7 {[%clk 0:00:53.3]} 37. g3
{[%clk 0:00:20.6]} 37... Nd5 {[%clk 0:00:53.8]} 38. Nxb5 {[%clk 0:00:20.4]}
38... h5 {[%clk 0:00:52.6]} 39. Kd3 {[%clk 0:00:20.2]} 39... h4 {[%clk
0:00:53.5]} 40. Nc3 {[%clk 0:00:19.5]} 40... Nc7 {[%clk 0:00:51.3]} 41. gxh4
{[%clk 0:00:18.9]} 41... Ne8 {[%clk 0:00:51.2]} 42. a4 {[%clk 0:00:18.7]} 42...
Ng7 {[%clk 0:00:52.1]} 43. a5 {[%clk 0:00:18.9]} 43... Kd7 {[%clk 0:00:52.1]}
44. Ne4 {[%clk 0:00:17.7]} 44... Nf5 {[%clk 0:00:52.1]} 45. Nc5+ {[%clk
0:00:17.4]} 45... Kc6 {[%clk 0:00:52.9]} 46. h5 {[%clk 0:00:17]} 46... Nh6
{[%clk 0:00:52.6]} 47. Nxe6 {[%clk 0:00:16.7]} 47... Ng4 {[%clk 0:00:53.5]} 48.
h3 {[%clk 0:00:15.4]} 48... Nf2+ {[%clk 0:00:53.3]} 49. Kd4 {[%clk 0:00:15.6]}
49... Nxh3 {[%clk 0:00:54.2]} 50. h6 {[%clk 0:00:15.2]} 50... Ng1 {[%clk
0:00:52.3]} 51. Ke3 {[%clk 0:00:14.4]} 51... Nh3 {[%clk 0:00:52.1]} 52. h7
{[%clk 0:00:14.6]} 52... Kb5 {[%clk 0:00:51.3]} 53. h8=Q {[%clk 0:00:14.4]}
53... Ng5 {[%clk 0:00:52.2]} 54. Nxg5 {[%clk 0:00:13.2]} 1-0

[Event "*** Titled Tuesday Blitz"]
[Site "Chess.com"]
[Date "2021.02.09"]
[Round "9"]
[White "esrosenberg"]
[Black "leoduarte"]
[Result "1-0"]
[WhiteElo "2103"]
[BlackElo "2380"]
[TimeControl "180+1"]
[EndTime "11:44:46 PST"]
[Termination "esrosenberg won on time"]

1. Nf3 {[%clk 0:03:00.9]} 1... c5 {[%clk 0:02:57.8]} 2. e4 {[%clk 0:02:58.7]}
2... Nc6 {[%clk 0:02:57.7]} 3. Bb5 {[%clk 0:02:58.6]} 3... Qb6 {[%clk
0:02:56.4]} 4. Nc3 {[%clk 0:02:51.9]} 4... e6 {[%clk 0:02:55.1]} 5. O-O {[%clk
0:02:50.2]} 5... Nge7 {[%clk 0:02:55.4]} 6. a4 {[%clk 0:02:43.6]} 6... a6 {[%clk
0:02:51]} 7. Bc4 {[%clk 0:02:34]} 7... Ng6 {[%clk 0:02:30.5]} 8. Ra3 {[%clk
0:02:11.3]} 8... Be7 {[%clk 0:02:26]} 9. d3 {[%clk 0:01:59.8]} 9... O-O {[%clk
0:02:05.2]} 10. h4 {[%clk 0:01:53.8]} 10... Nxh4 {[%clk 0:01:52.4]} 11. Nxh4
{[%clk 0:01:51.4]} 11... Bxh4 {[%clk 0:01:53.3]} 12. Qh5 {[%clk 0:01:39.5]}
12... Qd8 {[%clk 0:01:08.5]} 13. g3 {[%clk 0:01:34.5]} 13... Bf6 {[%clk
0:01:07.3]} 14. Kg2 {[%clk 0:01:29.4]} 14... g6 {[%clk 0:01:07.4]} 15. Qxc5
{[%clk 0:01:23.8]} 15... Bd4 {[%clk 0:00:40.7]} 16. Qg5 {[%clk 0:01:17.2]} 16...
Qxg5 {[%clk 0:00:40.8]} 17. Bxg5 {[%clk 0:01:16.9]} 17... Bc5 {[%clk 0:00:40.7]}
18. Raa1 {[%clk 0:01:14.9]} 18... b6 {[%clk 0:00:34.5]} 19. Bh6 {[%clk
0:01:04.7]} 19... Re8 {[%clk 0:00:30.1]} 20. Ne2 {[%clk 0:01:04.6]} 20... Bb7
{[%clk 0:00:28.2]} 21. c3 {[%clk 0:01:03.9]} 21... d5 {[%clk 0:00:24]} 22. Ba2
{[%clk 0:00:49.2]} 22... dxe4 {[%clk 0:00:22.9]} 23. dxe4 {[%clk 0:00:47.7]}
23... Ne5 {[%clk 0:00:14.8]} 24. f3 {[%clk 0:00:45.6]} 24... Rad8 {[%clk
0:00:13.3]} 25. Rad1 {[%clk 0:00:41.8]} 25... Rxd1 {[%clk 0:00:13.8]} 26. Rxd1
{[%clk 0:00:41.8]} 26... f5 {[%clk 0:00:14.4]} 27. Nf4 {[%clk 0:00:36.4]} 27...
fxe4 {[%clk 0:00:10.1]} 28. Bxe6+ {[%clk 0:00:31.5]} 28... Kh8 {[%clk 0:00:04]}
29. Bd5 {[%clk 0:00:26.4]} 29... exf3+ {[%clk 0:00:03]} 30. Kh3 {[%clk
0:00:24.1]} 30... Bxd5 {[%clk 0:00:02.9]} 31. Nxd5 {[%clk 0:00:22.6]} 31... f2
{[%clk 0:00:03]} 32. Nf6 {[%clk 0:00:21.7]} 32... Rc8 {[%clk 0:00:01.3]} 33. Kg2
{[%clk 0:00:20.8]} 33... Nd3 {[%clk 0:00:01.3]} 34. Rxd3 {[%clk 0:00:19.7]} 1-0

[Event "*** Titled Tuesday Blitz"]
[Site "Chess.com"]
[Date "2021.02.09"]
[Round "9"]
[White "kuban1991"]
[Black "Vanina1989"]
[Result "1-0"]
[WhiteElo "2905"]
[BlackElo "2734"]
[TimeControl "180+1"]
[EndTime "11:44:48 PST"]
[Termination "kuban1991 won on time"]

1. Nf3 {[%clk 0:03:00.9]} 1... d5 {[%clk 0:02:57.6]} 2. g3 {[%clk 0:03:00.9]}
2... c6 {[%clk 0:02:57.7]} 3. Bg2 {[%clk 0:03:01]} 3... Bg4 {[%clk 0:02:57.8]}
4. Ne5 {[%clk 0:03:00.9]} 4... Be6 {[%clk 0:02:53.3]} 5. d4 {[%clk 0:03:00.7]}
5... Nd7 {[%clk 0:02:52.1]} 6. O-O {[%clk 0:03:00.7]} 6... Nxe5 {[%clk
0:02:51.1]} 7. dxe5 {[%clk 0:03:01.6]} 7... Qd7 {[%clk 0:02:51.7]} 8. c4 {[%clk
0:03:00.9]} 8... dxc4 {[%clk 0:02:51.2]} 9. Qa4 {[%clk 0:02:58.3]} 9... Qc7
{[%clk 0:02:45.1]} 10. Na3 {[%clk 0:02:53.9]} 10... a6 {[%clk 0:02:28.2]} 11.
Nxc4 {[%clk 0:02:48.8]} 11... Rc8 {[%clk 0:02:14.6]} 12. Qc2 {[%clk 0:02:40]}
12... b5 {[%clk 0:01:54.1]} 13. Na5 {[%clk 0:02:01.6]} 13... Qxa5 {[%clk
0:00:45.8]} 14. Bxc6+ {[%clk 0:01:59.3]} 14... Rxc6 {[%clk 0:00:45.9]} 15. Qxc6+
{[%clk 0:02:00.2]} 15... Bd7 {[%clk 0:00:45.9]} 16. Qb7 {[%clk 0:01:51.4]} 16...
f6 {[%clk 0:00:36.2]} 17. Rd1 {[%clk 0:01:41.2]} 17... Be6 {[%clk 0:00:36.1]}
18. Bd2 {[%clk 0:01:23.5]} 18... Qa4 {[%clk 0:00:35.7]} 19. b3 {[%clk
0:01:22.3]} 19... Qg4 {[%clk 0:00:30.9]} 20. Qxa6 {[%clk 0:01:20.6]} 20... Kf7
{[%clk 0:00:25.8]} 21. Qxb5 {[%clk 0:01:18.4]} 21... h5 {[%clk 0:00:26]} 22. Qb4
{[%clk 0:01:03.5]} 22... Qg6 {[%clk 0:00:21.3]} 23. h4 {[%clk 0:00:58.7]} 23...
fxe5 {[%clk 0:00:18.5]} 24. a4 {[%clk 0:00:54.2]} 24... Nf6 {[%clk 0:00:18.4]}
25. a5 {[%clk 0:00:53.8]} 25... Ne4 {[%clk 0:00:18.5]} 26. Be1 {[%clk
0:00:51.1]} 26... Bc8 {[%clk 0:00:11]} 27. Qb6 {[%clk 0:00:35.4]} 27... Nd6
{[%clk 0:00:07.8]} 28. a6 {[%clk 0:00:31]} 28... Qe4 {[%clk 0:00:07.6]} 29. Qe3
{[%clk 0:00:23.8]} 29... Qa8 {[%clk 0:00:06.7]} 30. Qf3+ {[%clk 0:00:22.7]}
30... Qxf3 {[%clk 0:00:05.8]} 31. exf3 {[%clk 0:00:23.6]} 31... e6 {[%clk
0:00:04.3]} 32. a7 {[%clk 0:00:22]} 32... Bb7 {[%clk 0:00:04.7]} 33. a8=Q {[%clk
0:00:22.4]} 33... Bxa8 {[%clk 0:00:05]} 34. Rxa8 {[%clk 0:00:23]} 34... Nf5
{[%clk 0:00:05.3]} 35. Rdd8 {[%clk 0:00:21.4]} 35... Nd4 {[%clk 0:00:02.3]} 36.
Kg2 {[%clk 0:00:20]} 36... g6 {[%clk 0:00:01.5]} 37. Bb4 {[%clk 0:00:17.4]} 1-0

[Event "*** Titled Tuesday Blitz"]
[Site "Chess.com"]
[Date "2021.02.09"]
[Round "9"]
[White "louis198"]
[Black "Pogosian_Manvel"]
[Result "0-1"]
[WhiteElo "2539"]
[BlackElo "2408"]
[TimeControl "180+1"]
[EndTime "11:44:48 PST"]
[Termination "Pogosian_Manvel won by resignation"]

1. d4 {[%clk 0:02:57.5]} 1... Nf6 {[%clk 0:02:57.5]} 2. c4 {[%clk 0:02:58.1]}
2... g6 {[%clk 0:02:55.4]} 3. Nc3 {[%clk 0:02:57.5]} 3... Bg7 {[%clk 0:02:55.7]}
4. e4 {[%clk 0:02:57.8]} 4... O-O {[%clk 0:02:55.9]} 5. Nf3 {[%clk 0:02:58.1]}
5... d6 {[%clk 0:02:55.9]} 6. Be2 {[%clk 0:02:58.4]} 6... Nbd7 {[%clk
0:02:54.4]} 7. O-O {[%clk 0:02:59.2]} 7... e5 {[%clk 0:02:54.9]} 8. dxe5 {[%clk
0:02:59.3]} 8... Nxe5 {[%clk 0:02:54.8]} 9. Nxe5 {[%clk 0:02:58.3]} 9... dxe5
{[%clk 0:02:55.7]} 10. Qc2 {[%clk 0:02:59.1]} 10... Nd7 {[%clk 0:02:45.9]} 11.
Rd1 {[%clk 0:02:57.5]} 11... c6 {[%clk 0:02:42]} 12. b3 {[%clk 0:02:57.7]} 12...
Re8 {[%clk 0:02:34.7]} 13. Ba3 {[%clk 0:02:55.5]} 13... Qg5 {[%clk 0:02:24.9]}
14. Rd3 {[%clk 0:02:48.8]} 14... Bf8 {[%clk 0:02:22.3]} 15. Bxf8 {[%clk
0:02:47.1]} 15... Nxf8 {[%clk 0:02:22.2]} 16. Rad1 {[%clk 0:02:44.9]} 16... Ne6
{[%clk 0:02:22]} 17. Rg3 {[%clk 0:02:42]} 17... Qf6 {[%clk 0:02:17.6]} 18. h4
{[%clk 0:02:37.4]} 18... Nd4 {[%clk 0:02:15.4]} 19. Qd2 {[%clk 0:02:33.8]} 19...
Qxh4 {[%clk 0:02:13.2]} 20. Qe3 {[%clk 0:02:25.1]} 20... Be6 {[%clk 0:02:08.7]}
21. Bf1 {[%clk 0:01:40.1]} 21... Rad8 {[%clk 0:02:06.2]} 22. Rd3 {[%clk
0:01:40]} 22... Rd7 {[%clk 0:01:57.3]} 23. Ne2 {[%clk 0:01:36.4]} 23... Red8
{[%clk 0:01:52.1]} 24. Nxd4 {[%clk 0:01:36]} 24... Rxd4 {[%clk 0:01:50.9]} 25.
Rxd4 {[%clk 0:01:35.8]} 25... Rxd4 {[%clk 0:01:51.4]} 26. Bd3 {[%clk 0:01:26.6]}
26... Qd8 {[%clk 0:01:45.1]} 27. Be2 {[%clk 0:01:23.1]} 27... Rd2 {[%clk
0:01:41.5]} 28. a4 {[%clk 0:01:22.9]} 28... a5 {[%clk 0:01:31.9]} 29. Bg4 {[%clk
0:01:18.8]} 29... Bxg4 {[%clk 0:01:22.3]} 30. Rxg4 {[%clk 0:01:19.7]} 30... Rd3
{[%clk 0:01:19]} 31. Qh6 {[%clk 0:01:19.5]} 31... Qf8 {[%clk 0:01:05.2]} 32. Qg5
{[%clk 0:01:11.9]} 32... f6 {[%clk 0:01:00.4]} 33. Qf5 {[%clk 0:01:12]} 33...
Rxb3 {[%clk 0:00:49.2]} 34. f4 {[%clk 0:00:29.3]} 34... Rb1+ {[%clk 0:00:42.8]}
35. Kh2 {[%clk 0:00:29.5]} 35... Qh6+ {[%clk 0:00:40.2]} 36. Kg3 {[%clk
0:00:29.7]} 36... Rb3+ {[%clk 0:00:32]} 37. Kf2 {[%clk 0:00:29.6]} 37... Qxf4+
{[%clk 0:00:20.6]} 38. Rxf4 {[%clk 0:00:27.3]} 38... gxf5 {[%clk 0:00:20.6]} 39.
Rxf5 {[%clk 0:00:27]} 39... Kf7 {[%clk 0:00:20.6]} 40. g4 {[%clk 0:00:26]} 40...
h6 {[%clk 0:00:20.2]} 41. Rh5 {[%clk 0:00:23.6]} 41... Kg6 {[%clk 0:00:20.6]}
42. Rh1 {[%clk 0:00:23.1]} 42... Rb4 {[%clk 0:00:20.8]} 43. Ke3 {[%clk
0:00:22.9]} 43... Rxc4 {[%clk 0:00:20.1]} 44. Rb1 {[%clk 0:00:23.8]} 44... Rb4
{[%clk 0:00:20.1]} 45. Ra1 {[%clk 0:00:24]} 45... Rb3+ {[%clk 0:00:19]} 46. Kd2
{[%clk 0:00:24.1]} 46... Kg5 {[%clk 0:00:19.1]} 0-1

[Event "*** Titled Tuesday Blitz"]
[Site "Chess.com"]
[Date "2021.02.09"]
[Round "9"]
[White "floplover"]
[Black "AlexSuv"]
[Result "1-0"]
[WhiteElo "2316"]
[BlackElo "2437"]
[TimeControl "180+1"]
[EndTime "11:44:49 PST"]
[Termination "floplover won on time"]

1. d4 {[%clk 0:03:00.9]} 1... Nf6 {[%clk 0:02:59]} 2. Nf3 {[%clk 0:03:00]} 2...
e6 {[%clk 0:02:58.6]} 3. Bf4 {[%clk 0:02:59]} 3... c5 {[%clk 0:02:56.3]} 4. e3
{[%clk 0:02:59.2]} 4... b6 {[%clk 0:02:55.4]} 5. c3 {[%clk 0:02:56.7]} 5... Bb7
{[%clk 0:02:55.4]} 6. Nbd2 {[%clk 0:02:56.9]} 6... cxd4 {[%clk 0:02:51]} 7. exd4
{[%clk 0:02:56.5]} 7... d6 {[%clk 0:02:50.6]} 8. Bd3 {[%clk 0:02:52.3]} 8... Be7
{[%clk 0:02:51]} 9. O-O {[%clk 0:02:51.9]} 9... O-O {[%clk 0:02:51.6]} 10. Re1
{[%clk 0:02:51.6]} 10... Nbd7 {[%clk 0:02:51.6]} 11. a4 {[%clk 0:02:51.7]} 11...
a6 {[%clk 0:02:48.5]} 12. Qe2 {[%clk 0:02:47.4]} 12... Re8 {[%clk 0:02:40.4]}
13. h3 {[%clk 0:02:46.6]} 13... Nf8 {[%clk 0:02:33.8]} 14. Ne4 {[%clk
0:02:42.9]} 14... Nxe4 {[%clk 0:02:29]} 15. Bxe4 {[%clk 0:02:43.8]} 15... Bxe4
{[%clk 0:02:29.1]} 16. Qxe4 {[%clk 0:02:44.7]} 16... Ng6 {[%clk 0:02:26.5]} 17.
Bg3 {[%clk 0:02:41.9]} 17... Qd7 {[%clk 0:02:20]} 18. Qe2 {[%clk 0:02:29.7]}
18... b5 {[%clk 0:02:14.2]} 19. axb5 {[%clk 0:02:17.6]} 19... axb5 {[%clk
0:02:15.1]} 20. Qe4 {[%clk 0:02:11.9]} 20... Rab8 {[%clk 0:02:07.6]} 21. Ra6
{[%clk 0:02:07.4]} 21... d5 {[%clk 0:01:30.7]} 22. Qd3 {[%clk 0:01:55.1]} 22...
Rb7 {[%clk 0:01:29.3]} 23. Rea1 {[%clk 0:01:53.6]} 23... h5 {[%clk 0:01:23.5]}
24. Ra8 {[%clk 0:01:23.9]} 24... Bf6 {[%clk 0:01:01.6]} 25. h4 {[%clk 0:01:11]}
25... b4 {[%clk 0:00:51]} 26. c4 {[%clk 0:01:06.7]} 26... dxc4 {[%clk
0:00:45.5]} 27. Qxc4 {[%clk 0:01:07.6]} 27... Kh7 {[%clk 0:00:39.9]} 28. Qe2
{[%clk 0:00:55.4]} 28... Rxa8 {[%clk 0:00:37.3]} 29. Rxa8 {[%clk 0:00:54.6]}
29... Qb5 {[%clk 0:00:31.2]} 30. Qd1 {[%clk 0:00:43.4]} 30... Qf5 {[%clk
0:00:23.3]} 31. Qd2 {[%clk 0:00:27.5]} 31... Qe4 {[%clk 0:00:18.7]} 32. Ng5+
{[%clk 0:00:22.4]} 32... Bxg5 {[%clk 0:00:17.9]} 33. Qxg5 {[%clk 0:00:23]} 33...
Qg4 {[%clk 0:00:15.6]} 34. Qd8 {[%clk 0:00:21.4]} 34... Rb5 {[%clk 0:00:05.5]}
35. Qg8+ {[%clk 0:00:18.3]} 35... Kh6 {[%clk 0:00:05.8]} 36. Qxf7 {[%clk
0:00:17.7]} 36... Rd5 {[%clk 0:00:04]} 37. Rg8 {[%clk 0:00:12.2]} 1-0

[Event "*** Titled Tuesday Blitz"]
[Site "Chess.com"]
[Date "2021.02.09"]
[Round "9"]
[White "Angel_Hranitel_37"]
[Black "EugeneRougon"]
[Result "0-1"]
[WhiteElo "2506"]
[BlackElo "2717"]
[TimeControl "180+1"]
[EndTime "11:44:51 PST"]
[Termination "EugeneRougon won by resignation"]

1. d4 {[%clk 0:02:46.4]} 1... d6 {[%clk 0:02:58.3]} 2. Nf3 {[%clk 0:02:45.9]}
2... g6 {[%clk 0:02:58.3]} 3. g3 {[%clk 0:02:46.4]} 3... Bg7 {[%clk 0:02:58.2]}
4. Bg2 {[%clk 0:02:47.3]} 4... Nf6 {[%clk 0:02:59.1]} 5. O-O {[%clk 0:02:48.2]}
5... O-O {[%clk 0:03:00]} 6. c4 {[%clk 0:02:48.4]} 6... Nc6 {[%clk 0:03:00.2]}
7. Nc3 {[%clk 0:02:49]} 7... e5 {[%clk 0:02:59.4]} 8. d5 {[%clk 0:02:43.1]} 8...
Ne7 {[%clk 0:02:58.9]} 9. e4 {[%clk 0:02:42.9]} 9... a5 {[%clk 0:02:57.4]} 10.
Ne1 {[%clk 0:02:42.7]} 10... Nd7 {[%clk 0:02:54]} 11. Nd3 {[%clk 0:02:43.3]}
11... b6 {[%clk 0:02:51.4]} 12. Qe2 {[%clk 0:02:17.1]} 12... f5 {[%clk
0:02:50.1]} 13. f4 {[%clk 0:02:15.2]} 13... Nc5 {[%clk 0:02:24.2]} 14. fxe5
{[%clk 0:01:45]} 14... Nxd3 {[%clk 0:02:21.3]} 15. Qxd3 {[%clk 0:01:45.9]} 15...
Bxe5 {[%clk 0:02:17.1]} 16. Bh6 {[%clk 0:01:44.8]} 16... Rf7 {[%clk 0:02:16.3]}
17. Rae1 {[%clk 0:01:36.7]} 17... fxe4 {[%clk 0:01:29.3]} 18. Bxe4 {[%clk
0:01:37.6]} 18... Bf5 {[%clk 0:01:07.3]} 19. Bg5 {[%clk 0:01:32.2]} 19... Qd7
{[%clk 0:01:01.6]} 20. Bxf5 {[%clk 0:01:12.6]} 20... Nxf5 {[%clk 0:00:58.1]} 21.
Ne4 {[%clk 0:00:34.9]} 21... Raf8 {[%clk 0:00:34.7]} 22. Kg2 {[%clk 0:00:20.9]}
22... Bxb2 {[%clk 0:00:22.8]} 23. g4 {[%clk 0:00:21.2]} 23... Ng7 {[%clk
0:00:15.7]} 24. h3 {[%clk 0:00:17.6]} 24... Be5 {[%clk 0:00:13.5]} 25. Bh4
{[%clk 0:00:09.5]} 25... h6 {[%clk 0:00:11.2]} 26. Bg3 {[%clk 0:00:05.5]} 26...
Rxf1 {[%clk 0:00:08.1]} 27. Rxf1 {[%clk 0:00:04.2]} 27... Rxf1 {[%clk
0:00:08.6]} 28. Qxf1 {[%clk 0:00:04.8]} 28... Qe7 {[%clk 0:00:08.2]} 29. Bxe5
{[%clk 0:00:04.8]} 29... Qxe5 {[%clk 0:00:08.2]} 30. Nf6+ {[%clk 0:00:05.3]}
30... Kh8 {[%clk 0:00:08.7]} 31. Qf3 {[%clk 0:00:02.8]} 31... Nf5 {[%clk
0:00:07.8]} 32. gxf5 {[%clk 0:00:02.6]} 32... Qxf6 {[%clk 0:00:08.3]} 33. fxg6
{[%clk 0:00:03.5]} 33... Qxf3+ {[%clk 0:00:07.5]} 34. Kh2 {[%clk 0:00:04.4]}
34... Kg7 {[%clk 0:00:08.4]} 0-1

[Event "*** Titled Tuesday Blitz"]
[Site "Chess.com"]
[Date "2021.02.09"]
[Round "9"]
[White "KetiGrant"]
[Black "Grineva_Marianna"]
[Result "0-1"]
[WhiteElo "2337"]
[BlackElo "2227"]
[TimeControl "180+1"]
[EndTime "11:44:52 PST"]
[Termination "Grineva_Marianna won on time"]

1. e4 {[%clk 0:03:00.9]} 1... c5 {[%clk 0:02:59.2]} 2. Nf3 {[%clk 0:03:00.3]}
2... Nc6 {[%clk 0:02:58.4]} 3. d4 {[%clk 0:02:59.9]} 3... cxd4 {[%clk
0:02:58.1]} 4. Nxd4 {[%clk 0:03:00.8]} 4... Nf6 {[%clk 0:02:58.5]} 5. Nc3 {[%clk
0:03:00.8]} 5... g6 {[%clk 0:02:59]} 6. Nxc6 {[%clk 0:02:53.1]} 6... bxc6 {[%clk
0:02:59.9]} 7. e5 {[%clk 0:02:52.4]} 7... Ng8 {[%clk 0:02:59.6]} 8. Bc4 {[%clk
0:02:48.7]} 8... Bg7 {[%clk 0:02:58.5]} 9. Qf3 {[%clk 0:02:41.8]} 9... f5 {[%clk
0:02:57.8]} 10. exf6 {[%clk 0:02:38.6]} 10... Nxf6 {[%clk 0:02:52.1]} 11. O-O
{[%clk 0:02:37.3]} 11... d5 {[%clk 0:02:37.5]} 12. Bb3 {[%clk 0:02:31.9]} 12...
O-O {[%clk 0:02:30.9]} 13. Qe3 {[%clk 0:02:28.3]} 13... Bf5 {[%clk 0:02:20.6]}
14. Qc5 {[%clk 0:02:11.4]} 14... Qd7 {[%clk 0:02:04.2]} 15. Re1 {[%clk
0:02:07.8]} 15... Rae8 {[%clk 0:01:57.1]} 16. Bg5 {[%clk 0:02:04.4]} 16... h6
{[%clk 0:01:42.3]} 17. Bh4 {[%clk 0:01:54.1]} 17... Kh7 {[%clk 0:01:37.9]} 18.
Rad1 {[%clk 0:01:52.9]} 18... e5 {[%clk 0:01:25.7]} 19. Bg3 {[%clk 0:01:31.3]}
19... Nh5 {[%clk 0:01:12.1]} 20. Bxe5 {[%clk 0:01:26.8]} 20... Bxe5 {[%clk
0:00:50.5]} 21. Rxe5 {[%clk 0:01:26.3]} 21... Rxe5 {[%clk 0:00:38.1]} 22. Qxf8
{[%clk 0:01:25.5]} 22... Nf4 {[%clk 0:00:31]} 23. Qf6 {[%clk 0:01:04.4]} 23...
Re6 {[%clk 0:00:25.6]} 24. Qd4 {[%clk 0:00:59.3]} 24... g5 {[%clk 0:00:18.5]}
25. g3 {[%clk 0:00:50.7]} 25... Nh3+ {[%clk 0:00:17.4]} 26. Kg2 {[%clk 0:00:49]}
26... Qe7 {[%clk 0:00:17.1]} 27. Qd2 {[%clk 0:00:27.1]} 27... Qf6 {[%clk
0:00:13.3]} 28. f3 {[%clk 0:00:20]} 28... Re7 {[%clk 0:00:11.1]} 29. Na4 {[%clk
0:00:18.3]} 29... Bc8 {[%clk 0:00:10.5]} 30. Nc5 {[%clk 0:00:17.9]} 30... g4
{[%clk 0:00:10]} 31. f4 {[%clk 0:00:16.2]} 31... Qf5 {[%clk 0:00:08.7]} 32. Re1
{[%clk 0:00:10.7]} 32... Qf6 {[%clk 0:00:08.7]} 33. Qd3+ {[%clk 0:00:08.8]}
33... Kg7 {[%clk 0:00:06.9]} 34. Rxe7+ {[%clk 0:00:04.8]} 34... Qxe7 {[%clk
0:00:07.8]} 35. Qd4+ {[%clk 0:00:02.4]} 35... Kf7 {[%clk 0:00:08]} 0-1